[Event "Titled Tuesday Blitz June 6 Late 2023"]
[White "Kovalev, Vladislav"]
[Black "Caruana, Fabiano"]
[WhiteFideId "13504398"]
[BlackFideId "2020009"]
[WhiteElo "2555"]
[BlackElo "2832"]
[Result "1-0"]
[Round "6"]
[TimeControl "180+2"]
[Date "2023.06.07"]
[WhiteClock "0:00:04"]
[BlackClock "0:00:01"]
[Board "3"]

1. e4 {[%clk 0:02:58]}  c5 {[%clk 0:02:55]} 2. Nf3 {[%clk 0:02:58]}  Nc6 {[%clk 0:02:52]} 3. Bb5 {[%clk 0:02:56]}  g6 {[%clk 0:02:51]} 4. O-O {[%clk 0:02:55]}  Bg7 {[%clk 0:02:50]} 5. c3 {[%clk 0:02:56]}  Nf6 {[%clk 0:02:48]} 6. Re1 {[%clk 0:02:55]}  O-O {[%clk 0:02:44]} 7. d4 {[%clk 0:02:54]}  d5 {[%clk 0:02:31]} 8. e5 {[%clk 0:02:52]}  Ne4 {[%clk 0:02:31]} 9. Bxc6 {[%clk 0:02:36]}  bxc6 {[%clk 0:02:31]} 10. Be3 {[%clk 0:02:37]}  Rb8 {[%clk 0:02:30]} 11. Qc1 {[%clk 0:02:27]}  a5 {[%clk 0:02:26]} 12. Nbd2 {[%clk 0:02:25]}  a4 {[%clk 0:02:24]} 13. dxc5 {[%clk 0:02:20]}  Qc7 {[%clk 0:01:59]} 14. Bd4 {[%clk 0:02:10]}  Bf5 {[%clk 0:01:57]} 15. b4 {[%clk 0:01:25]}  axb3 {[%clk 0:01:52]} 16. axb3 {[%clk 0:01:25]}  Bh6 {[%clk 0:01:49]} 17. b4 {[%clk 0:01:20]}  Ra8 {[%clk 0:01:40]} 18. Qb2 {[%clk 0:01:20]}  Bf4 {[%clk 0:01:30]} 19. g3 {[%clk 0:00:59]}  Bh6 {[%clk 0:01:29]} 20. Nxe4 {[%clk 0:00:58]}  dxe4 {[%clk 0:01:14]} 21. Nd2 {[%clk 0:00:58]}  Rxa1 {[%clk 0:01:12]} 22. Rxa1 {[%clk 0:00:57]}  Qd7 {[%clk 0:01:10]} 23. Re1 {[%clk 0:00:53]}  Ra8 {[%clk 0:01:08]} 24. Nxe4 {[%clk 0:00:50]}  Qd5 {[%clk 0:01:04]} 25. Qb1 {[%clk 0:00:30]}  Ra2 {[%clk 0:00:46]} 26. Qd3 {[%clk 0:00:30]}  Bd2 {[%clk 0:00:37]} 27. Re2 {[%clk 0:00:23]}  Ra1+ {[%clk 0:00:20]} 28. Kg2 {[%clk 0:00:24]}  Bxc3 {[%clk 0:00:17]} 29. Qxc3 {[%clk 0:00:17]}  Bxe4+ {[%clk 0:00:16]} 30. f3 {[%clk 0:00:18]}  Bxf3+ {[%clk 0:00:16]} 31. Qxf3 {[%clk 0:00:19]}  Qxd4 {[%clk 0:00:17]} 32. e6 {[%clk 0:00:18]}  f5 {[%clk 0:00:15]} 33. Rf2 {[%clk 0:00:09]}  Ra6 {[%clk 0:00:10]} 34. g4 {[%clk 0:00:07]}  Ra3 {[%clk 0:00:06]} 35. Qxa3 {[%clk 0:00:06]}  Qxg4+ {[%clk 0:00:06]} 36. Qg3 {[%clk 0:00:06]}  Qxb4 {[%clk 0:00:05]} 37. Qe3 {[%clk 0:00:04]}  Qg4+ {[%clk 0:00:05]} 38. Qg3 {[%clk 0:00:05]}  Qc4 {[%clk 0:00:05]} 39. Qf3 {[%clk 0:00:05]}  Qxc5 {[%clk 0:00:05]} 40. h3 {[%clk 0:00:05]}  Qd6 {[%clk 0:00:05]} 41. Qe3 {[%clk 0:00:05]}  Qd5+ {[%clk 0:00:05]} 42. Qf3 {[%clk 0:00:06]}  Qxe6 {[%clk 0:00:05]} 43. Re2 {[%clk 0:00:06]}  Qf6 {[%clk 0:00:05]} 44. Qe3 {[%clk 0:00:06]}  Kf7 {[%clk 0:00:05]} 45. Qb3+ {[%clk 0:00:07]}  Kg7 {[%clk 0:00:05]} 46. Qe6 {[%clk 0:00:08]}  Qg5+ {[%clk 0:00:04]} 47. Kh1 {[%clk 0:00:06]}  Kh6 {[%clk 0:00:03]} 48. Qe3 {[%clk 0:00:06]}  f4 {[%clk 0:00:03]} 49. Qxe7 {[%clk 0:00:07]}  Qg3 {[%clk 0:00:04]} 50. Qe4 {[%clk 0:00:03]}  f3 {[%clk 0:00:03]} 51. Qe3+ {[%clk 0:00:04]}  g5 {[%clk 0:00:03]} 52. Qe6+ {[%clk 0:00:04]}  Kh5 {[%clk 0:00:03]} 53. Qg4+ {[%clk 0:00:03]}  Qxg4 {[%clk 0:00:03]} 54. hxg4+ {[%clk 0:00:04]}  Kxg4 {[%clk 0:00:04]} 55. Rc2 {[%clk 0:00:05]}  h5 {[%clk 0:00:04]} 56. Kh2 {[%clk 0:00:05]}  Kf4 {[%clk 0:00:02]} 57. Rc4+ {[%clk 0:00:05]}  Ke3 {[%clk 0:00:02]} 58. Rxc6 {[%clk 0:00:04]}  h4 {[%clk 0:00:01]} 59. Re6+ {[%clk 0:00:03]}  Kf4 {[%clk 0:00:02]} 60. Rf6+ {[%clk 0:00:04]}  Kg4 {[%clk 0:00:01]} 61. Rf8 {[%clk 0:00:04]} 1-0


[Site "https://www.chess.com"]

[Event "Titled Tuesday Blitz June 6 Late 2023"]
[White "Nepomniachtchi, Ian"]
[Black "Matlakov, Maxim"]
[WhiteFideId "4168119"]
[BlackFideId "4168003"]
[WhiteElo "2781"]
[BlackElo "2666"]
[Result "1-0"]
[Round "6"]
[TimeControl "180+2"]
[Date "2023.06.07"]
[WhiteClock "0:00:07"]
[BlackClock "0:00:01"]
[Board "4"]

1. e4 {[%clk 0:03:00]}  c5 {[%clk 0:02:58]} 2. Nf3 {[%clk 0:03:00]}  d6 {[%clk 0:02:59]} 3. d4 {[%clk 0:03:00]}  cxd4 {[%clk 0:02:59]} 4. Nxd4 {[%clk 0:03:01]}  Nf6 {[%clk 0:02:59]} 5. Nc3 {[%clk 0:03:01]}  a6 {[%clk 0:02:59]} 6. Be2 {[%clk 0:03:02]}  e6 {[%clk 0:02:54]} 7. Be3 {[%clk 0:03:02]}  Be7 {[%clk 0:02:51]} 8. g4 {[%clk 0:03:02]}  b5 {[%clk 0:02:50]} 9. g5 {[%clk 0:03:02]}  Nfd7 {[%clk 0:02:50]} 10. Qd2 {[%clk 0:02:56]}  Bb7 {[%clk 0:02:47]} 11. a3 {[%clk 0:02:53]}  Nb6 {[%clk 0:02:34]} 12. h4 {[%clk 0:02:48]}  N8d7 {[%clk 0:02:34]} 13. h5 {[%clk 0:02:41]}  Ne5 {[%clk 0:02:28]} 14. b3 {[%clk 0:02:41]}  Rc8 {[%clk 0:02:22]} 15. f4 {[%clk 0:02:15]}  Ned7 {[%clk 0:01:37]} 16. Bf3 {[%clk 0:01:54]}  Qc7 {[%clk 0:01:33]} 17. Nce2 {[%clk 0:01:50]}  Nc5 {[%clk 0:00:58]} 18. Ng3 {[%clk 0:01:50]}  d5 {[%clk 0:00:59]} 19. g6 {[%clk 0:01:35]}  hxg6 {[%clk 0:00:56]} 20. hxg6 {[%clk 0:01:35]}  Rxh1+ {[%clk 0:00:56]} 21. Bxh1 {[%clk 0:01:36]}  dxe4 {[%clk 0:00:52]} 22. b4 {[%clk 0:01:30]}  Nc4 {[%clk 0:00:51]} 23. gxf7+ {[%clk 0:01:22]}  Kxf7 {[%clk 0:00:50]} 24. Qe2 {[%clk 0:01:22]}  Nd3+ {[%clk 0:00:50]} 25. cxd3 {[%clk 0:00:59]}  Nxe3 {[%clk 0:00:50]} 26. Qh5+ {[%clk 0:00:47]}  Kg8 {[%clk 0:00:49]} 27. Nxe4 {[%clk 0:00:46]}  Qxf4 {[%clk 0:00:46]} 28. Ke2 {[%clk 0:00:30]}  Nf5 {[%clk 0:00:34]} 29. Nxf5 {[%clk 0:00:23]}  exf5 {[%clk 0:00:35]} 30. Nd2 {[%clk 0:00:14]}  Bg5 {[%clk 0:00:31]} 31. Bxb7 {[%clk 0:00:12]}  Qxd2+ {[%clk 0:00:28]} 32. Kf1 {[%clk 0:00:12]}  Qxd3+ {[%clk 0:00:25]} 33. Kg2 {[%clk 0:00:12]}  Rc2+ {[%clk 0:00:24]} 34. Kh1 {[%clk 0:00:12]}  Qd7 {[%clk 0:00:07]} 35. Bf3 {[%clk 0:00:10]}  Bf6 {[%clk 0:00:03]} 36. Rg1 {[%clk 0:00:09]}  Rc3 {[%clk 0:00:01]} 37. Rd1 {[%clk 0:00:06]}  Rd3 {[%clk 0:00:01]} 38. Re1 {[%clk 0:00:07]} 1-0


[Site "https://www.chess.com"]

[Event "Titled Tuesday Blitz June 6 Late 2023"]
[White "Kollars, Dmitrij"]
[Black "Keymer, Vincent"]
[WhiteFideId "12909572"]
[BlackFideId "12940690"]
[WhiteElo "2584"]
[BlackElo "2669"]
[Result "0-1"]
[Round "6"]
[TimeControl "180+2"]
[Date "2023.06.07"]
[WhiteClock "0:00:44"]
[BlackClock "0:01:42"]
[Board "5"]

1. e4 {[%clk 0:03:00]}  c6 {[%clk 0:02:58]} 2. Nc3 {[%clk 0:02:56]}  d5 {[%clk 0:02:59]} 3. Nf3 {[%clk 0:02:53]}  dxe4 {[%clk 0:02:59]} 4. Nxe4 {[%clk 0:02:54]}  Nf6 {[%clk 0:03:00]} 5. Qe2 {[%clk 0:02:42]}  Nxe4 {[%clk 0:03:00]} 6. Qxe4 {[%clk 0:02:43]}  Nd7 {[%clk 0:03:00]} 7. d4 {[%clk 0:02:42]}  Nf6 {[%clk 0:03:00]} 8. Qh4 {[%clk 0:02:41]}  Bf5 {[%clk 0:02:57]} 9. c3 {[%clk 0:02:38]}  e6 {[%clk 0:02:57]} 10. Be2 {[%clk 0:02:36]}  Be7 {[%clk 0:02:53]} 11. Qg3 {[%clk 0:02:28]}  Nh5 {[%clk 0:02:35]} 12. Qe5 {[%clk 0:01:56]}  Bd6 {[%clk 0:02:34]} 13. Qe3 {[%clk 0:01:57]}  Bf4 {[%clk 0:02:34]} 14. Qxf4 {[%clk 0:01:57]}  Nxf4 {[%clk 0:02:34]} 15. Bxf4 {[%clk 0:01:58]}  Qb6 {[%clk 0:02:33]} 16. O-O-O {[%clk 0:01:57]}  O-O {[%clk 0:02:30]} 17. Ne5 {[%clk 0:01:57]}  Qa5 {[%clk 0:02:21]} 18. a3 {[%clk 0:01:46]}  Qd5 {[%clk 0:02:20]} 19. f3 {[%clk 0:01:39]}  Qa2 {[%clk 0:02:10]} 20. Nd3 {[%clk 0:01:35]}  Rfd8 {[%clk 0:02:04]} 21. g4 {[%clk 0:01:35]}  Bg6 {[%clk 0:01:48]} 22. h4 {[%clk 0:01:35]}  c5 {[%clk 0:01:49]} 23. d5 {[%clk 0:01:20]}  Rxd5 {[%clk 0:01:44]} 24. h5 {[%clk 0:00:43]}  Bxd3 {[%clk 0:01:43]} 25. Bxd3 {[%clk 0:00:44]}  Rxd3 {[%clk 0:01:42]} 0-1


[Site "https://www.chess.com"]

[Event "Titled Tuesday Blitz June 6 Late 2023"]
[White "Chigaev, Maksim"]
[Black "Nakamura, Hikaru"]
[WhiteFideId "4108116"]
[BlackFideId "2016192"]
[WhiteElo "2561"]
[BlackElo "2874"]
[Result "0-1"]
[Round "6"]
[TimeControl "180+2"]
[Date "2023.06.07"]
[WhiteClock "0:00:03"]
[BlackClock "0:00:14"]
[Board "7"]

1. d4 {[%clk 0:02:51]}  g6 {[%clk 0:02:59]} 2. e4 {[%clk 0:02:49]}  Bg7 {[%clk 0:03:00]} 3. Nc3 {[%clk 0:02:50]}  a6 {[%clk 0:03:00]} 4. Be3 {[%clk 0:02:46]}  d6 {[%clk 0:02:59]} 5. h4 {[%clk 0:02:45]}  h5 {[%clk 0:02:59]} 6. Qd2 {[%clk 0:02:44]}  b5 {[%clk 0:02:59]} 7. f3 {[%clk 0:02:45]}  Nd7 {[%clk 0:02:59]} 8. O-O-O {[%clk 0:02:45]}  Nb6 {[%clk 0:02:59]} 9. Bd3 {[%clk 0:02:25]}  Nf6 {[%clk 0:02:54]} 10. Kb1 {[%clk 0:02:24]}  Nfd7 {[%clk 0:02:52]} 11. Nh3 {[%clk 0:02:23]}  e6 {[%clk 0:02:48]} 12. Ng5 {[%clk 0:02:23]}  Qe7 {[%clk 0:02:49]} 13. Rde1 {[%clk 0:02:23]}  Bb7 {[%clk 0:02:49]} 14. d5 {[%clk 0:02:16]}  O-O-O {[%clk 0:02:30]} 15. Rhf1 {[%clk 0:02:00]}  Rhe8 {[%clk 0:02:01]} 16. a3 {[%clk 0:01:57]}  Nc5 {[%clk 0:01:25]} 17. f4 {[%clk 0:01:16]}  exd5 {[%clk 0:01:17]} 18. Nxd5 {[%clk 0:01:07]}  Bxd5 {[%clk 0:00:57]} 19. exd5 {[%clk 0:01:08]}  Qf6 {[%clk 0:00:57]} 20. c3 {[%clk 0:01:04]}  Nxd5 {[%clk 0:00:54]} 21. Bc2 {[%clk 0:00:09]}  Nxe3 {[%clk 0:00:49]} 22. Rxe3 {[%clk 0:00:10]}  Kb8 {[%clk 0:00:39]} 23. g3 {[%clk 0:00:10]}  Rxe3 {[%clk 0:00:25]} 24. Qxe3 {[%clk 0:00:11]}  Bf8 {[%clk 0:00:24]} 25. f5 {[%clk 0:00:11]}  d5 {[%clk 0:00:24]} 26. Rf4 {[%clk 0:00:06]}  Bd6 {[%clk 0:00:23]} 27. Rd4 {[%clk 0:00:06]}  c6 {[%clk 0:00:21]} 28. Rd1 {[%clk 0:00:05]}  Rd7 {[%clk 0:00:18]} 29. Qf2 {[%clk 0:00:04]}  Nb7 {[%clk 0:00:13]} 30. Nf3 {[%clk 0:00:04]}  gxf5 {[%clk 0:00:12]} 31. Nd4 {[%clk 0:00:04]}  Be5 {[%clk 0:00:13]} 32. Nxf5 {[%clk 0:00:03]}  c5 {[%clk 0:00:12]} 33. g4 {[%clk 0:00:03]}  hxg4 {[%clk 0:00:13]} 34. h5 {[%clk 0:00:04]}  d4 {[%clk 0:00:13]} 35. cxd4 {[%clk 0:00:04]}  cxd4 {[%clk 0:00:14]} 36. Be4 {[%clk 0:00:05]}  Nc5 {[%clk 0:00:14]} 37. Qg2 {[%clk 0:00:05]}  d3 {[%clk 0:00:14]} 38. Qc2 {[%clk 0:00:03]}  dxc2+ {[%clk 0:00:14]} 0-1


[Site "https://www.chess.com"]

[Event "Titled Tuesday Blitz June 6 Late 2023"]
[White "Indjic, Aleksandar"]
[Black "Martinez Alcantara, Jose Eduardo"]
[WhiteFideId "911925"]
[BlackFideId "3805662"]
[WhiteElo "2614"]
[BlackElo "2711"]
[Result "1/2-1/2"]
[Round "6"]
[TimeControl "180+2"]
[Date "2023.06.07"]
[WhiteClock "0:00:12"]
[BlackClock "0:00:05"]
[Board "8"]

1. d4 {[%clk 0:02:52]}  Nf6 {[%clk 0:03:00]} 2. c4 {[%clk 0:02:52]}  e6 {[%clk 0:03:00]} 3. Nc3 {[%clk 0:02:51]}  Bb4 {[%clk 0:03:01]} 4. f3 {[%clk 0:02:51]}  c5 {[%clk 0:02:58]} 5. a3 {[%clk 0:02:51]}  Bxc3+ {[%clk 0:02:57]} 6. bxc3 {[%clk 0:02:52]}  Nc6 {[%clk 0:02:57]} 7. e4 {[%clk 0:02:51]}  d6 {[%clk 0:02:57]} 8. Ne2 {[%clk 0:02:48]}  b6 {[%clk 0:02:54]} 9. Ng3 {[%clk 0:02:44]}  Na5 {[%clk 0:02:43]} 10. Bd3 {[%clk 0:02:35]}  Qc7 {[%clk 0:02:26]} 11. O-O {[%clk 0:02:35]}  h6 {[%clk 0:02:13]} 12. f4 {[%clk 0:02:34]}  Bb7 {[%clk 0:01:48]} 13. d5 {[%clk 0:02:19]}  O-O-O {[%clk 0:01:46]} 14. Rb1 {[%clk 0:02:06]}  Kb8 {[%clk 0:01:19]} 15. Rf2 {[%clk 0:02:02]}  Ka8 {[%clk 0:01:19]} 16. h3 {[%clk 0:01:53]}  h5 {[%clk 0:01:18]} 17. Nf1 {[%clk 0:01:49]}  Rhe8 {[%clk 0:01:17]} 18. Ne3 {[%clk 0:01:47]}  exd5 {[%clk 0:01:09]} 19. Nxd5 {[%clk 0:01:46]}  Bxd5 {[%clk 0:01:04]} 20. exd5 {[%clk 0:01:42]}  Re7 {[%clk 0:01:02]} 21. Rf1 {[%clk 0:01:36]}  Rde8 {[%clk 0:01:02]} 22. Qc2 {[%clk 0:01:32]}  Ne4 {[%clk 0:00:44]} 23. Kh2 {[%clk 0:01:30]}  f5 {[%clk 0:00:44]} 24. Bd2 {[%clk 0:01:27]}  g6 {[%clk 0:00:43]} 25. Be1 {[%clk 0:01:26]}  Rh7 {[%clk 0:00:34]} 26. Bh4 {[%clk 0:01:26]}  Qg7 {[%clk 0:00:34]} 27. Rbe1 {[%clk 0:01:23]}  Rhh8 {[%clk 0:00:32]} 28. Rc1 {[%clk 0:01:15]}  Qf7 {[%clk 0:00:25]} 29. Rfe1 {[%clk 0:01:14]}  Nf6 {[%clk 0:00:25]} 30. Qa4 {[%clk 0:01:10]}  Ne4 {[%clk 0:00:21]} 31. Re3 {[%clk 0:01:01]}  Kb8 {[%clk 0:00:19]} 32. Rce1 {[%clk 0:01:00]}  Rhf8 {[%clk 0:00:06]} 33. Bxe4 {[%clk 0:00:59]}  fxe4 {[%clk 0:00:07]} 34. Rxe4 {[%clk 0:00:58]}  Rxe4 {[%clk 0:00:08]} 35. Rxe4 {[%clk 0:00:57]}  Qf5 {[%clk 0:00:09]} 36. Re8+ {[%clk 0:00:53]}  Rxe8 {[%clk 0:00:08]} 37. Qxe8+ {[%clk 0:00:51]}  Kb7 {[%clk 0:00:09]} 38. Qe7+ {[%clk 0:00:40]}  Ka6 {[%clk 0:00:09]} 39. Qxd6 {[%clk 0:00:40]}  Nxc4 {[%clk 0:00:09]} 40. Qf6 {[%clk 0:00:40]}  Qxd5 {[%clk 0:00:04]} 41. Qxg6 {[%clk 0:00:40]}  Ne3 {[%clk 0:00:05]} 42. c4 {[%clk 0:00:15]}  Qd4 {[%clk 0:00:03]} 43. Bf2 {[%clk 0:00:11]}  Qxf4+ {[%clk 0:00:03]} 44. Kg1 {[%clk 0:00:12]}  Nxc4 {[%clk 0:00:02]} 45. Qxh5 {[%clk 0:00:12]}  Kb5 {[%clk 0:00:02]} 46. Qe2 {[%clk 0:00:11]}  Qc1+ {[%clk 0:00:03]} 47. Kh2 {[%clk 0:00:11]}  Qxa3 {[%clk 0:00:04]} 48. h4 {[%clk 0:00:12]}  Qc3 {[%clk 0:00:04]} 49. h5 {[%clk 0:00:12]}  Qf6 {[%clk 0:00:04]} 50. g4 {[%clk 0:00:12]}  a5 {[%clk 0:00:04]} 51. Bg3 {[%clk 0:00:10]}  a4 {[%clk 0:00:04]} 52. Kh3 {[%clk 0:00:10]}  a3 {[%clk 0:00:05]} 53. Bh4 {[%clk 0:00:10]}  Qb2 {[%clk 0:00:04]} 54. Qe8+ {[%clk 0:00:09]}  Kb4 {[%clk 0:00:02]} 55. Be1+ {[%clk 0:00:09]}  Nd2 {[%clk 0:00:02]} 56. Qe3 {[%clk 0:00:10]}  a2 {[%clk 0:00:02]} 57. Bxd2+ {[%clk 0:00:10]}  Ka4 {[%clk 0:00:02]} 58. Bc3 {[%clk 0:00:11]}  Qb3 {[%clk 0:00:01]} 59. Qe4+ {[%clk 0:00:11]}  Kb5 {[%clk 0:00:01]} 60. Qe8+ {[%clk 0:00:11]}  Kc4 {[%clk 0:00:01]} 61. Kh4 {[%clk 0:00:09]}  Qxc3 {[%clk 0:00:02]} 62. Qe6+ {[%clk 0:00:09]}  Kb4 {[%clk 0:00:02]} 63. Qxa2 {[%clk 0:00:09]}  Qf6+ {[%clk 0:00:02]} 64. Kh3 {[%clk 0:00:10]}  Qf3+ {[%clk 0:00:03]} 65. Kh4 {[%clk 0:00:10]}  Qf6+ {[%clk 0:00:03]} 66. Kh3 {[%clk 0:00:11]}  Qf3+ {[%clk 0:00:04]} 67. Kh4 {[%clk 0:00:12]}  Qf6+ {[%clk 0:00:05]} 1/2-1/2


[Site "https://www.chess.com"]

[Event "Titled Tuesday Blitz June 6 Late 2023"]
[White "Paravyan, David"]
[Black "Schmakel, Sam"]
[WhiteFideId "4194985"]
[BlackFideId "2039311"]
[WhiteElo "2563"]
[BlackElo "2356"]
[Result "1-0"]
[Round "6"]
[TimeControl "180+2"]
[Date "2023.06.07"]
[WhiteClock "0:00:10"]
[BlackClock "0:00:03"]
[Board "9"]

1. d4 {[%clk 0:03:00]}  g6 {[%clk 0:03:00]} 2. e4 {[%clk 0:02:58]}  Bg7 {[%clk 0:03:00]} 3. Nf3 {[%clk 0:02:59]}  d6 {[%clk 0:03:00]} 4. h3 {[%clk 0:02:59]}  Nf6 {[%clk 0:03:00]} 5. Bd3 {[%clk 0:02:59]}  O-O {[%clk 0:02:59]} 6. O-O {[%clk 0:03:00]}  Nc6 {[%clk 0:02:59]} 7. Re1 {[%clk 0:03:00]}  e5 {[%clk 0:02:58]} 8. dxe5 {[%clk 0:03:00]}  dxe5 {[%clk 0:02:58]} 9. Nbd2 {[%clk 0:02:59]}  h6 {[%clk 0:02:54]} 10. Nf1 {[%clk 0:02:50]}  Nh5 {[%clk 0:02:46]} 11. Bc4 {[%clk 0:02:47]}  Qf6 {[%clk 0:02:45]} 12. Ne3 {[%clk 0:02:45]}  Nf4 {[%clk 0:02:44]} 13. Nd5 {[%clk 0:02:44]}  Nxd5 {[%clk 0:02:44]} 14. exd5 {[%clk 0:02:43]}  Rd8 {[%clk 0:02:45]} 15. Bd2 {[%clk 0:02:38]}  b5 {[%clk 0:02:09]} 16. Bb3 {[%clk 0:02:33]}  Nd4 {[%clk 0:02:09]} 17. Nxd4 {[%clk 0:02:33]}  exd4 {[%clk 0:02:10]} 18. Bb4 {[%clk 0:02:32]}  Bf8 {[%clk 0:02:01]} 19. Bxf8 {[%clk 0:02:32]}  Kxf8 {[%clk 0:02:02]} 20. Qd2 {[%clk 0:02:32]}  Kg7 {[%clk 0:01:59]} 21. Red1 {[%clk 0:02:30]}  Bb7 {[%clk 0:01:56]} 22. Qd3 {[%clk 0:01:14]}  a6 {[%clk 0:01:22]} 23. a4 {[%clk 0:01:06]}  Bxd5 {[%clk 0:01:05]} 24. axb5 {[%clk 0:00:44]}  axb5 {[%clk 0:00:56]} 25. Rxa8 {[%clk 0:00:32]}  Bxa8 {[%clk 0:00:57]} 26. Qxb5 {[%clk 0:00:31]}  Qf4 {[%clk 0:00:44]} 27. Re1 {[%clk 0:00:21]}  h5 {[%clk 0:00:27]} 28. Re7 {[%clk 0:00:19]}  Rf8 {[%clk 0:00:10]} 29. Qe5+ {[%clk 0:00:15]}  Qxe5 {[%clk 0:00:10]} 30. Rxe5 {[%clk 0:00:16]}  Kf6 {[%clk 0:00:03]} 31. Rc5 {[%clk 0:00:16]}  c6 {[%clk 0:00:04]} 32. Bc4 {[%clk 0:00:16]}  Ke7 {[%clk 0:00:03]} 33. Ra5 {[%clk 0:00:14]}  Kd6 {[%clk 0:00:03]} 34. h4 {[%clk 0:00:14]}  Bb7 {[%clk 0:00:03]} 35. b4 {[%clk 0:00:12]}  f6 {[%clk 0:00:01]} 36. Bd3 {[%clk 0:00:13]}  Bc8 {[%clk 0:00:02]} 37. Bxg6 {[%clk 0:00:12]}  Bg4 {[%clk 0:00:02]} 38. f3 {[%clk 0:00:13]}  Be6 {[%clk 0:00:02]} 39. Rxh5 {[%clk 0:00:13]}  Rb8 {[%clk 0:00:02]} 40. b5 {[%clk 0:00:10]}  cxb5 {[%clk 0:00:02]} 41. Bd3 {[%clk 0:00:11]}  b4 {[%clk 0:00:03]} 42. Ra5 {[%clk 0:00:09]}  b3 {[%clk 0:00:03]} 43. cxb3 {[%clk 0:00:10]}  Rxb3 {[%clk 0:00:04]} 44. Ra6+ {[%clk 0:00:10]}  Kd7 {[%clk 0:00:02]} 45. Rxe6 {[%clk 0:00:10]}  Rxd3 {[%clk 0:00:02]} 46. Rxf6 {[%clk 0:00:11]}  Rd2 {[%clk 0:00:02]} 47. h5 {[%clk 0:00:10]}  Ke7 {[%clk 0:00:02]} 48. Rf4 {[%clk 0:00:10]}  Ke6 {[%clk 0:00:02]} 49. h6 {[%clk 0:00:11]}  Rd1+ {[%clk 0:00:02]} 50. Kh2 {[%clk 0:00:11]}  d3 {[%clk 0:00:03]} 51. h7 {[%clk 0:00:11]}  d2 {[%clk 0:00:03]} 52. h8=Q {[%clk 0:00:10]} 1-0


[Site "https://www.chess.com"]

[Event "Titled Tuesday Blitz June 6 Late 2023"]
[White "Andreikin, Dmitry"]
[Black "Pakleza, Zbigniew"]
[WhiteFideId "4158814"]
[BlackFideId "1119290"]
[WhiteElo "2736"]
[BlackElo "2410"]
[Result "1-0"]
[Round "6"]
[TimeControl "180+2"]
[Date "2023.06.07"]
[WhiteClock "0:00:45"]
[BlackClock "0:00:01"]
[Board "11"]

1. Nf3 {[%clk 0:02:57]}  d5 {[%clk 0:03:00]} 2. c4 {[%clk 0:02:56]}  c6 {[%clk 0:03:00]} 3. d4 {[%clk 0:02:54]}  Nf6 {[%clk 0:03:01]} 4. Nc3 {[%clk 0:02:53]}  Qb6 {[%clk 0:03:00]} 5. c5 {[%clk 0:02:44]}  Qc7 {[%clk 0:02:59]} 6. Bg5 {[%clk 0:02:41]}  b6 {[%clk 0:02:54]} 7. b4 {[%clk 0:02:33]}  a5 {[%clk 0:02:47]} 8. a3 {[%clk 0:02:33]}  Ne4 {[%clk 0:02:39]} 9. Nxe4 {[%clk 0:02:29]}  dxe4 {[%clk 0:02:40]} 10. Nd2 {[%clk 0:02:30]}  Bf5 {[%clk 0:02:00]} 11. e3 {[%clk 0:02:27]}  e6 {[%clk 0:01:46]} 12. Bf4 {[%clk 0:02:24]}  Qb7 {[%clk 0:01:36]} 13. Nc4 {[%clk 0:02:24]}  axb4 {[%clk 0:01:26]} 14. axb4 {[%clk 0:02:18]}  b5 {[%clk 0:01:25]} 15. Nd6+ {[%clk 0:01:57]}  Bxd6 {[%clk 0:01:25]} 16. Bxd6 {[%clk 0:01:57]}  Nd7 {[%clk 0:01:21]} 17. g4 {[%clk 0:01:51]}  Rxa1 {[%clk 0:01:01]} 18. Qxa1 {[%clk 0:01:52]}  Bxg4 {[%clk 0:01:02]} 19. d5 {[%clk 0:01:51]}  f6 {[%clk 0:00:41]} 20. Rg1 {[%clk 0:01:42]}  h5 {[%clk 0:00:37]} 21. dxc6 {[%clk 0:01:38]}  Qxc6 {[%clk 0:00:37]} 22. h3 {[%clk 0:01:39]}  Qd5 {[%clk 0:00:18]} 23. hxg4 {[%clk 0:01:29]}  Qb3 {[%clk 0:00:18]} 24. Be2 {[%clk 0:01:10]}  h4 {[%clk 0:00:11]} 25. c6 {[%clk 0:01:05]}  Nb6 {[%clk 0:00:10]} 26. g5 {[%clk 0:00:50]}  e5 {[%clk 0:00:02]} 27. g6 {[%clk 0:00:45]}  h3 {[%clk 0:00:01]} 28. Bxb5 {[%clk 0:00:45]} 1-0


[Site "https://www.chess.com"]